bitfinex/quotes_SOLUSD_20250706
["timestamp","ask_amount","ask_price","bid_price","bid_amount"]
[1751795029417,7.620771,147.7,147.69,10.67927331]
[1751795038028,7.620771,147.7,147.69,0.06]
[1751795040132,7.620771,147.7,147.69,3.90833419]
[1751795041433,7.620771,147.7,147.69,10.67927331]
[1751795047744,7.620771,147.7,147.69,6.83093912]
[1751795049048,7.620771,147.7,147.69,0.06]
[1751795049222,7.620771,147.7,147.69,3.90833419]
[1751795054362,7.620771,147.7,147.69,10.67927331]
[1751795055336,7.620771,147.7,147.69,6.83093912]
[1751795058954,7.620771,147.7,147.69,0.06]
[1751795060449,7.620771,147.7,147.69,6.83093912]
[1751795062764,7.620771,147.7,147.69,26.06]
[1751795064955,7.620771,147.7,147.69,32.83093912]
[1751795068765,7.61849767,147.7,147.69,32.83093912]
[1751795069654,7.61849767,147.7,147.69,26.06]
[1751795072458,7.61849767,147.7,147.69,0.06]
[1751795087079,7.61849767,147.7,147.68,3.33202638]
[1751795087285,7.61849767,147.69,147.68,3.33202638]
[1751795093385,7.61849767,147.69,147.68,36.10342399]
[1751795094782,0.03,147.71,147.68,36.10342399]
[1751795094965,7.61446735,147.7,147.68,36.10342399]
[1751795095166,0.03,147.71,147.68,36.10342399]
[1751795095367,7.61458694,147.7,147.68,36.10342399]
[1751795095567,0.03,147.71,147.68,36.10342399]
[1751795095782,7.61458462,147.7,147.68,36.10342399]
[1751795095973,0.03,147.71,147.68,36.10342399]
[1751795096170,7.61458462,147.7,147.68,36.10342399]
[1751795096376,0.03,147.71,147.68,36.10342399]
[1751795096576,7.61471389,147.7,147.68,36.10342399]
[1751795096779,0.03,147.71,147.68,36.10342399]
[1751795096979,7.61471389,147.7,147.68,36.10342399]
[1751795097179,0.03,147.71,147.68,36.10342399]
[1751795097368,7.6148506,147.7,147.68,36.10342399]
[1751795097568,0.03,147.71,147.68,36.10342399]
[1751795097783,7.6148506,147.7,147.68,36.10342399]
[1751795098070,0.03,147.71,147.68,36.16342399]
[1751795098269,7.6148506,147.7,147.68,36.16342399]
[1751795098488,7.6148506,147.69,147.68,36.16342399]
[1751795098794,0.03,147.7,147.68,36.16342399]
[1751795101187,7.61504212,147.69,147.68,36.16342399]
[1751795102410,7.61504212,147.69,147.68,32.83139761]
[1751795103419,7.61504212,147.69,147.68,26.06]
[1751795114321,7.61504212,147.69,147.68,0.06]
[1751795114695,7.61504212,147.69,147.68,3.90833419]
[1751795120220,7.61504212,147.69,147.68,0.06]
[1751795121521,0.03,147.7,147.68,0.06]
[1751795127238,3.84833419,147.69,147.68,0.06]
[1751795127731,30.1125551,147.69,147.68,0.06]
[1751795128317,36.88349422,147.69,147.68,0.06]
[1751795131828,7.61457205,147.69,147.68,0.06]
[1751795133029,17.13278711,147.69,147.68,0.06]
[1751795133668,23.90372623,147.69,147.68,0.06]
[1751795135013,27.75206042,147.69,147.68,0.06]
[1751795138339,18.23384536,147.69,147.68,0.06]
[1751795140640,11.46290624,147.69,147.68,0.06]
[1751795140820,7.61457205,147.69,147.68,0.06]
[1751795143051,7.64457205,147.69,147.68,0.06]
[1751795149940,7.6269408,147.69,147.68,0.06]
[1751795152248,11.47527499,147.69,147.68,0.06]
[1751795157246,3.87833419,147.69,147.68,0.06]
[1751795157549,11.47464229,147.69,147.68,0.06]
[1751795157741,7.6263081,147.69,147.68,0.06]
[1751795157946,11.47464229,147.69,147.68,0.06]
[1751795159155,7.6263081,147.69,147.68,0.06]
[1751795159328,11.47464229,147.69,147.68,0.06]
[1751795160949,36.89523027,147.69,147.68,0.06]
[1751795161766,11.47464229,147.69,147.68,0.06]
[1751795161968,7.6263081,147.69,147.68,0.06]
[1751795164758,14.39724722,147.69,147.68,0.06]
[1751795165858,36.89523027,147.69,147.68,0.06]
[1751795168151,46.3906154,147.69,147.68,0.06]
[1751795169372,18.64964886,147.68,147.66,0.06]
[1751795169557,11.44464229,147.67,147.66,0.06]
[1751795169754,18.21649845,147.67,147.66,0.06]
[1751795174075,36.86614731,147.67,147.66,0.06]
[1751795174254,46.37927796,147.67,147.66,0.06]
[1751795174452,36.86614731,147.67,147.66,0.06]
[1751795177177,33.01781312,147.67,147.66,0.06]
[1751795177384,36.86614731,147.67,147.66,0.06]
[1751795177990,36.88014942,147.67,147.66,0.06]
[1751795178458,46.3913737,147.67,147.66,0.06]
[1751795181374,42.54303951,147.67,147.66,0.06]
[1751795181579,46.3913737,147.67,147.66,0.06]
[1751795190274,23.89339065,147.67,147.66,0.06]
[1751795191611,14.38216637,147.67,147.66,0.06]
[1751795191992,7.61031021,147.67,147.66,0.06]
[1751795195797,7.61031021,147.67,147.66,3.90833419]
[1751795199307,7.61031021,147.67,147.66,0.06]
[1751795218919,7.61031021,147.67,147.66,3.90833419]
[1751795221025,7.61031021,147.67,147.66,0.06]
[1751795224640,7.61031021,147.67,147.66,3.90833419]
[1751795226837,7.61031021,147.67,147.66,10.68064896]
[1751795227130,0.03,147.68,147.66,10.68064896]
[1751795227629,0.03,147.68,147.66,6.83231477]
[1751795228131,0.03,147.68,147.66,10.68064896]
[1751795228336,7.60371484,147.67,147.66,10.68064896]
[1751795229731,7.60371484,147.67,147.66,3.90833419]
[1751795230738,7.60371484,147.67,147.66,0.06]
[1751795234646,7.60371484,147.67,147.66,3.90833419]
[1751795238938,7.60371484,147.67,147.66,0.06]
[1751795241155,7.60371484,147.67,147.66,3.90833419]
[1751795245965,7.60371484,147.67,147.66,0.06]
[1751795247249,7.61323492,147.67,147.66,0.06]
[1751795250366,7.61323492,147.67,147.66,3.90833419]
[1751795250553,0.03,147.68,147.66,10.68064896]
[1751795250741,0.03,147.68,147.67,3.84833419]
[1751795251840,0.03,147.68,147.67,36.62019035]
[1751795281576,0.03,147.68,147.67,32.77185616]
[1751795281798,0.03,147.68,147.67,36.62019035]
[1751795284590,0.03,147.68,147.67,26.0]
[1751795284796,0.03,147.68,147.66,0.06]
[1751795284797,11.4846619,147.68,147.66,0.06]
[1751795284985,13.00193043,147.67,147.66,0.06]
[1751795285291,13.00193043,147.67,147.65,0.1]
[1751795285591,30.10447929,147.66,147.65,0.1]
[1751795285803,39.60881182,147.66,147.65,0.1]
[1751795286586,39.60881182,147.66,147.63,0.1]
[1751795286587,25.42242231,147.65,147.63,0.1]
[1751795286794,11.45483043,147.64,147.63,0.1]
[1751795287684,18.22806261,147.64,147.63,0.1]
[1751795289478,36.87771147,147.64,147.63,0.1]
[1751795291677,36.87771147,147.64,147.59,0.1]
[1751795291678,25.19614886,147.62,147.59,0.1]
[1751795291996,22.49798305,147.6,147.59,0.1]
[1751795292721,31.72987929,147.6,147.59,0.1]
[1751795293174,44.64964886,147.59,147.54,0.1]
[1751795293378,3.84833419,147.55,147.54,0.1]
[1751795293606,10.62569779,147.55,147.54,0.1]
[1751795293907,12.79915734,147.55,147.54,0.1]
[1751795294293,6.02179374,147.56,147.54,0.1]
[1751795294599,6.02179374,147.55,147.54,0.1]
[1751795296194,6.02179374,147.56,147.54,0.1]
[1751795297213,6.02179374,147.55,147.54,0.1]
[1751795297706,31.4488062,147.55,147.54,0.1]
[1751795298220,40.51395557,147.55,147.54,0.1]
[1751795300210,18.64964886,147.54,147.53,1e-08]
[1751795300390,18.64964886,147.54,147.52,0.1]
[1751795300391,19.54953685,147.54,147.52,0.1]
[1751795300590,58.17739197,147.53,147.52,0.1]
[1751795302684,64.95567435,147.53,147.52,1e-08]
[1751795302898,70.97746809,147.53,147.52,1e-08]
[1751795303306,70.97746809,147.53,147.44,26.0]
[1751795303307,87.92317404,147.53,147.44,26.0]
[1751795303611,18.64964886,147.51,147.44,26.0]
[1751795303816,6.02179374,147.47,147.44,26.0]
[1751795304009,6.02179374,147.48,147.43,32.02179374]
[1751795304186,6.02179374,147.48,147.43,26.0]
[1751795304386,6.02179374,147.47,147.43,26.0]
[1751795304613,7.46368916,147.51,147.43,26.0]
[1751795304614,6.77966101,147.5,147.43,38.80467062]
[1751795304811,6.02179374,147.49,147.43,38.80467062]
[1751795305505,6.02179374,147.49,147.44,6.02179374]
[1751795306007,6.02179374,147.49,147.44,12.8040409]
[1751795306223,6.02179374,147.51,147.45,6.02179374]
[1751795306394,6.02179374,147.51,147.46,6.02179374]
[1751795306395,6.02179374,147.5,147.46,6.02179374]
[1751795306602,14.23604497,147.51,147.44,6.78224716]
[1751795306825,6.02179374,147.49,147.44,6.78224716]
[1751795307109,6.02179374,147.49,147.44,12.8040409]
[1751795307310,6.02179374,147.5,147.44,12.8040409]
[1751795307513,6.02179374,147.49,147.44,6.78224716]
[1751795307693,6.02179374,147.49,147.43,12.80452024]
[1751795308007,12.80237415,147.48,147.43,12.80452024]
[1751795308213,6.02179374,147.46,147.42,33.22]
[1751795308413,6.02179374,147.46,147.42,7.22]
[1751795308707,6.02179374,147.44,147.42,7.22]
[1751795308893,6.02179374,147.45,147.42,7.22]
[1751795309286,6.02179374,147.44,147.42,7.22]
[1751795310887,12.80433853,147.44,147.42,7.22]
[1751795311693,6.02179374,147.43,147.42,7.22]
[1751795311914,12.80467375,147.43,147.42,7.22]
[1751795312807,12.80467375,147.43,147.4,2.39902932]
[1751795312808,18.64964886,147.42,147.4,2.39902932]
[1751795313111,32.10873312,147.41,147.4,2.39902932]
[1751795313616,58.10873312,147.41,147.4,1e-08]
[1751795313803,64.8925334,147.41,147.4,1e-08]
[1751795314907,58.10873312,147.41,147.4,1e-08]
[1751795315311,64.8925334,147.41,147.4,1e-08]
[1751795318614,52.08693938,147.41,147.4,1e-08]
[1751795318817,58.10873312,147.41,147.4,1e-08]
[1751795319127,7.43729052,147.41,147.4,1e-08]
[1751795319430,7.43729052,147.42,147.4,1e-08]
[1751795319607,6.02179374,147.42,147.4,1e-08]
[1751795319935,6.02179374,147.42,147.4,0.06000001]
[1751795320221,13.44350667,147.41,147.4,0.06000001]
[1751795320605,7.42171293,147.41,147.4,0.06000001]
[1751795323801,13.44350667,147.41,147.4,0.06000001]
[1751795324714,7.42171293,147.41,147.4,0.06000001]
[1751795329133,7.42171293,147.41,147.4,6.08179375]
[1751795330933,7.42171293,147.41,147.4,12.86605426]
[1751795333838,7.42171293,147.41,147.4,6.84426052]
[1751795334330,7.42171293,147.41,147.4,12.86605426]
[1751795338336,7.5215325,147.41,147.4,12.86605426]
[1751795339014,9.40191562,147.44,147.4,29.82670554]
[1751795339219,8.38194063,147.5,147.42,26.0]
[1751795339220,7.52277967,147.43,147.42,26.0]
[1751795340356,9.40191562,147.48,147.43,6.78288001]
[1751795340516,9.40191562,147.49,147.43,6.78288001]
[1751795340714,9.40191562,147.49,147.46,6.02179374]
[1751795340915,9.40191562,147.5,147.48,6.02179374]
[1751795341128,9.40191562,147.51,147.48,6.02179374]
[1751795341336,15.42370936,147.49,147.46,26.0]
[1751795341523,15.42370936,147.49,147.45,1.5588]
[1751795341840,15.42370936,147.49,147.45,7.58059374]
[1751795342138,6.02179374,147.46,147.44,7.28]
[1751795342940,6.02179374,147.47,147.44,7.28]
[1751795343446,6.02179374,147.46,147.44,7.28]
[1751795343825,6.02179374,147.45,147.44,7.28]
[1751795345534,12.80380122,147.45,147.4,32.84415729]
[1751795345730,6.02179374,147.43,147.4,32.84415729]
[1751795347739,6.78104021,147.47,147.4,32.84415729]
[1751795348052,6.02179374,147.44,147.4,32.84415729]
[1751795348236,6.02179374,147.45,147.4,32.84415729]
[1751795348438,6.02179374,147.45,147.4,38.86595103]
[1751795348636,6.02179374,147.44,147.4,32.84415729]
[1751795348850,6.02179374,147.45,147.4,32.84415729]
[1751795350054,12.80389061,147.45,147.4,32.84415729]
[1751795355158,6.02179374,147.45,147.4,38.86595103]
[1751795355362,6.02179374,147.45,147.41,6.02179374]
[1751795356672,6.02179374,147.46,147.41,6.02179374]
[1751795356860,7.55939879,147.45,147.41,6.02179374]
[1751795357063,18.64964886,147.48,147.43,6.02179374]
[1751795357370,7.56050552,147.47,147.43,6.02179374]
[1751795357546,24.6714426,147.48,147.43,6.02179374]
[1751795357732,18.64964886,147.48,147.43,6.02179374]
[1751795357930,6.02179374,147.47,147.43,6.02179374]
[1751795358149,6.02179374,147.46,147.41,7.68759374]
[1751795358560,13.58087208,147.46,147.42,6.02179374]
[1751795358746,6.02179374,147.46,147.42,12.80510263]
[1751795359051,7.56034943,147.46,147.42,12.80510263]
[1751795359249,13.58214317,147.46,147.42,12.80510263]
[1751795359450,6.02179374,147.46,147.42,12.80510263]
[1751795360151,6.02179374,147.47,147.42,12.80510263]
[1751795360662,6.02179374,147.47,147.42,6.78330889]
[1751795360963,6.02179374,147.47,147.43,12.80464118]
[1751795361164,6.02179374,147.46,147.42,6.78306451]
[1751795361664,7.56631483,147.45,147.42,6.78306451]
[1751795361846,6.02179374,147.46,147.42,6.78306451]
[1751795362043,7.56632434,147.45,147.42,6.78306451]
[1751795362240,6.02179374,147.46,147.42,6.78306451]
[1751795362439,7.5683866,147.45,147.42,6.78306451]
[1751795362647,6.02179374,147.46,147.41,14.47122059]
[1751795362968,13.59043667,147.45,147.41,8.44942685]
[1751795363271,6.02179374,147.45,147.41,8.44942685]
[1751795364545,6.02179374,147.46,147.41,14.47122059]
[1751795364773,13.59383355,147.45,147.41,14.47122059]
[1751795364946,7.57203981,147.44,147.42,6.02179374]
[1751795365262,6.05179374,147.46,147.41,14.47122059]
[1751795365454,7.57288382,147.45,147.41,14.47122059]
[1751795365654,6.05179374,147.46,147.41,14.47122059]
[1751795365858,7.57288382,147.45,147.42,6.02179374]
[1751795366063,0.03,147.46,147.43,6.02179374]
[1751795366270,0.03,147.46,147.42,6.02179374]
[1751795366773,0.03,147.46,147.43,6.78288001]
[1751795367571,0.03,147.46,147.44,6.02179374]
[1751795367960,0.03,147.46,147.43,6.78288001]
[1751795368675,0.03,147.46,147.44,6.02179374]
[1751795368877,0.03,147.46,147.44,12.80377936]
[1751795369370,0.03,147.46,147.44,6.78198562]
[1751795369569,0.03,147.46,147.44,12.80377936]
[1751795370142,6.05179374,147.46,147.42,6.0925]
[1751795370349,13.59850303,147.45,147.41,1.6658]
[1751795370550,6.02179374,147.45,147.41,1.6658]
[1751795371152,6.02179374,147.45,147.41,8.44931236]
[1751795371349,6.02179374,147.44,147.4,32.84416884]
[1751795371550,7.57803873,147.43,147.4,6.84416884]
[1751795371763,6.02179374,147.45,147.4,12.86596258]
[1751795371966,7.58089009,147.44,147.4,12.86596258]
[1751795372164,7.58089009,147.43,147.4,12.86596258]
[1751795372378,6.02179374,147.45,147.4,12.86596258]
[1751795372578,7.58391625,147.44,147.4,12.86596258]
[1751795372760,7.58391625,147.43,147.4,12.86596258]
[1751795372956,6.02179374,147.45,147.4,12.86596258]
[1751795373162,7.58404325,147.44,147.4,12.86596258]
[1751795373361,7.58404325,147.43,147.4,12.86596258]
[1751795373563,6.02179374,147.44,147.4,12.86596258]
[1751795373770,7.5852819,147.43,147.4,12.86596258]
[1751795374079,6.02179374,147.44,147.4,12.86596258]
[1751795374265,7.58587597,147.43,147.4,12.86596258]
[1751795374450,6.02179374,147.44,147.4,6.84416884]
[1751795374646,7.58515557,147.43,147.4,6.84416884]
[1751795374849,6.02179374,147.44,147.4,6.84416884]
[1751795375074,7.58514981,147.43,147.4,6.84416884]
[1751795375278,6.02179374,147.44,147.4,6.84416884]
[1751795375455,7.58581694,147.43,147.4,6.84416884]
[1751795375650,6.02179374,147.44,147.4,6.84416884]
[1751795375856,7.58581118,147.43,147.4,6.84416884]
[1751795376064,6.02179374,147.44,147.4,6.84416884]
[1751795376276,7.58581118,147.43,147.4,6.84416884]
[1751795376447,6.02179374,147.44,147.4,6.84416884]
[1751795376648,7.58578347,147.43,147.4,12.86596258]
[1751795376877,25.46114892,147.46,147.4,12.86596258]
[1751795377077,6.02179374,147.44,147.4,12.86596258]
[1751795377258,7.58579345,147.43,147.4,12.86596258]
[1751795377452,6.02179374,147.44,147.4,12.86596258]
[1751795377779,7.58627156,147.43,147.4,12.86596258]
[1751795377980,6.02179374,147.44,147.4,12.86596258]
[1751795378160,7.58627235,147.43,147.4,12.86596258]
[1751795378476,18.67964886,147.46,147.4,12.86596258]
[1751795378477,6.05179374,147.46,147.42,6.02179374]
[1751795378778,6.05179374,147.46,147.4,6.84416884]
[1751795378779,7.58724129,147.45,147.41,6.02179374]
[1751795378972,7.58724129,147.44,147.41,6.02179374]
[1751795379174,6.05179374,147.46,147.41,6.02179374]
[1751795379383,7.58715582,147.45,147.42,6.02179374]
[1751795379584,0.03,147.46,147.4,23.80482012]
[1751795379880,7.58823314,147.45,147.43,6.02179374]
[1751795380175,0.03,147.46,147.43,6.02179374]
[1751795380371,7.5882481,147.45,147.43,12.8046634]
[1751795380571,0.03,147.46,147.43,12.8046634]
[1751795380755,7.58921707,147.45,147.43,12.8046634]
[1751795380956,0.03,147.46,147.43,12.8046634]
[1751795381165,7.58921937,147.45,147.43,12.8046634]
[1751795381466,0.03,147.46,147.43,12.8046634]
[1751795381669,7.58969006,147.45,147.43,12.8046634]
[1751795381870,0.03,147.46,147.43,12.8046634]
[1751795382167,7.58944984,147.45,147.43,12.8046634]
[1751795382364,0.03,147.46,147.43,12.8046634]
[1751795382568,7.59046508,147.45,147.43,12.8046634]
[1751795382864,0.03,147.46,147.43,12.8046634]
[1751795383069,7.59046738,147.45,147.43,12.8046634]
[1751795383277,0.03,147.46,147.43,12.8046634]
[1751795385076,0.03,147.46,147.43,6.78286966]
[1751795385284,0.03,147.46,147.43,12.8046634]
[1751795385783,7.58928642,147.45,147.43,12.8046634]
[1751795386079,0.03,147.46,147.43,12.8046634]
[1751795386263,7.58928472,147.45,147.43,12.8046634]
[1751795386465,0.03,147.46,147.43,12.8046634]
[1751795386677,7.59043809,147.45,147.43,12.8046634]
[1751795386880,0.03,147.46,147.43,12.8046634]
[1751795387083,7.59043809,147.45,147.41,0.06]
[1751795387268,6.05179374,147.46,147.41,6.08179374]
[1751795387458,7.5902832,147.45,147.41,6.08179374]
[1751795387659,6.05179374,147.46,147.41,6.08179374]
[1751795387859,7.59028091,147.45,147.41,6.08179374]
[1751795388080,7.59028091,147.44,147.41,6.08179374]
[1751795388260,6.05179374,147.46,147.41,6.08179374]
[1751795388459,7.58979638,147.45,147.41,6.08179374]
[1751795388679,6.05179374,147.46,147.42,6.78334011]
[1751795388866,7.59009532,147.45,147.42,6.78334011]
[1751795389193,7.59009532,147.44,147.42,6.78334011]
[1751795389375,6.05179374,147.46,147.42,6.78334011]
[1751795389686,7.59000715,147.45,147.42,6.78334011]
[1751795389856,7.59000715,147.44,147.42,6.78334011]
[1751795390057,6.05179374,147.46,147.42,6.78334011]
[1751795390258,7.59000715,147.45,147.42,6.78334011]
[1751795390483,7.59000715,147.44,147.42,6.78334011]
[1751795390781,6.05179374,147.46,147.42,6.78334011]
[1751795390978,7.59001353,147.45,147.42,6.78334011]
[1751795391296,7.59001353,147.44,147.42,6.78334011]
[1751795391462,6.05179374,147.46,147.42,6.78334011]
[1751795391662,7.58990778,147.45,147.42,6.78334011]
[1751795391862,7.58990778,147.44,147.41,6.84378505]
[1751795392078,7.58967142,147.43,147.41,6.84378505]
[1751795392264,7.58919713,147.42,147.41,0.06]
[1751795392876,6.02179374,147.44,147.41,0.06]
[1751795393078,7.58909603,147.43,147.41,0.06]
[1751795393273,6.02179374,147.44,147.41,0.06]
[1751795393274,16.25904911,147.46,147.41,0.06]
[1751795393479,6.02179374,147.44,147.41,0.06]
[1751795393682,7.58879857,147.43,147.41,0.06]
[1751795393861,6.02179374,147.44,147.41,0.06]
[1751795394058,7.58878859,147.43,147.41,0.06]
[1751795394286,6.02179374,147.43,147.41,0.06]
[1751795395666,7.5877166,147.42,147.41,0.06]
[1751795401974,13.60951034,147.42,147.41,0.06]
[1751795403393,20.39285045,147.42,147.41,0.06]
[1751795403608,39.04249931,147.42,147.41,0.06]
[1751795405498,33.02070557,147.42,147.41,0.06]
[1751795405704,39.04249931,147.42,147.41,0.06]
[1751795408104,40.65929931,147.42,147.41,0.06]
[1751795408685,40.68929931,147.42,147.41,0.06]
[1751795411498,50.13680065,147.42,147.41,1e-08]
[1751795412002,44.64964886,147.41,147.4,0.06000001]
[1751795412204,67.71718915,147.41,147.4,1e-08]
[1751795412800,41.71718915,147.41,147.4,1e-08]
[1751795414304,48.50098943,147.41,147.4,1e-08]
[1751795414507,51.90952204,147.41,147.4,1e-08]
[1751795414691,51.90952204,147.41,147.39,0.1]
[1751795414894,51.90952204,147.41,147.32,7.14]
[1751795414895,6.02179374,147.34,147.32,7.14]
[1751795415406,6.02179374,147.34,147.3,1.2383574]
[1751795415711,6.02179374,147.34,147.3,0.2383574]
[1751795416298,6.78690123,147.35,147.3,6.26015114]
[1751795416607,6.02179374,147.34,147.3,6.26015114]
[1751795417713,6.02179374,147.34,147.3,0.2383574]
[1751795417895,6.02179374,147.34,147.3,6.26015114]
[1751795419315,6.02179374,147.34,147.3,0.2383574]
[1751795419614,12.8089787,147.34,147.3,0.2383574]
[1751795419802,6.02179374,147.33,147.3,0.2383574]
[1751795419993,6.78610206,147.36,147.3,0.2383574]
[1751795420195,6.02179374,147.33,147.3,0.2383574]
[1751795421125,29.77315095,147.36,147.3,0.2383574]
[1751795421294,6.02179374,147.32,147.3,0.2383574]
[1751795422529,24.6714426,147.31,147.3,0.2383574]
[1751795424396,31.459848,147.31,147.3,0.2383574]
[1751795425308,38.97705081,147.31,147.3,0.2383574]
[1751795426710,18.64964886,147.3,147.26,0.1]
[1751795426907,24.6714426,147.27,147.26,0.1]
[1751795428203,18.64964886,147.27,147.26,0.1]
[1751795428401,24.6714426,147.27,147.26,0.1]
[1751795428611,31.4616918,147.27,147.26,0.1]
[1751795432805,25.43989806,147.27,147.26,0.1]
[1751795433122,31.4616918,147.27,147.26,0.1]
[1751795434234,25.43989806,147.27,147.26,0.1]
[1751795434446,31.4616918,147.27,147.26,0.1]
[1751795436007,18.64964886,147.27,147.26,0.1]
[1751795436212,24.6714426,147.27,147.26,0.1]
[1751795437310,6.78894404,147.3,147.26,0.1]
[1751795437511,24.6714426,147.29,147.26,0.1]
[1751795438935,6.02179374,147.28,147.26,0.1]
[1751795439435,6.02179374,147.27,147.26,0.1]
[1751795441220,24.6714426,147.27,147.26,0.1]
[1751795442107,18.64964886,147.27,147.26,0.1]
[1751795442307,24.6714426,147.27,147.26,0.1]
[1751795442929,18.64964886,147.29,147.26,0.1]
[1751795443137,6.02179374,147.28,147.26,0.1]
[1751795443317,6.02179374,147.27,147.26,0.1]
[1751795444532,6.02179374,147.28,147.26,0.1]
[1751795447125,25.43908364,147.29,147.26,0.1]
[1751795447326,6.02179374,147.28,147.26,0.1]
[1751795447637,24.6714426,147.29,147.26,0.1]
[1751795448227,18.64964886,147.29,147.26,0.1]
[1751795448421,18.64964886,147.33,147.26,6.12179374]
[1751795448633,6.02179374,147.31,147.26,6.12179374]
[1751795448824,18.67964886,147.34,147.26,0.1]
[1751795449026,6.02179374,147.31,147.26,6.12179374]
[1751795449419,6.02179374,147.31,147.26,12.9124782]
[1751795449620,6.78818739,147.32,147.26,12.9124782]
[1751795449621,6.02179374,147.3,147.26,12.9124782]
[1751795450224,6.02179374,147.3,147.26,0.1]
[1751795450537,6.02179374,147.3,147.26,6.12179374]
[1751795451143,7.50727877,147.31,147.26,12.91232472]
[1751795451337,6.02179374,147.3,147.26,12.91232472]
[1751795451729,6.02179374,147.3,147.26,6.89053098]
[1751795451930,6.02179374,147.3,147.26,12.91232472]
[1751795452439,7.51497825,147.31,147.26,12.91232472]
[1751795452616,13.53677199,147.31,147.26,12.91232472]
[1751795453144,7.51497825,147.31,147.26,12.91232472]
[1751795453627,13.56677199,147.31,147.26,12.91232472]
[1751795453825,0.03,147.31,147.26,12.91232472]
[1751795454038,13.57183908,147.31,147.26,12.91232472]
[1751795456042,13.57183908,147.31,147.26,6.89053098]
[1751795456245,13.57183908,147.31,147.26,12.91232472]
[1751795456550,7.52004534,147.3,147.26,12.91232472]
[1751795456845,7.52004534,147.3,147.26,6.89053098]
[1751795457046,7.52004534,147.3,147.26,12.91232472]
[1751795458249,7.55004534,147.31,147.28,6.02179374]
[1751795458426,0.03,147.31,147.29,6.02179374]
[1751795458742,0.03,147.31,147.28,6.02179374]
[1751795460237,0.03,147.31,147.28,12.81138909]
[1751795460628,0.03,147.31,147.29,6.02179374]
[1751795461246,7.57621837,147.31,147.29,6.02179374]
[1751795461454,0.03,147.31,147.29,6.02179374]
[1751795461637,0.03,147.31,147.28,12.81138909]
[1751795461840,0.03,147.31,147.29,6.02179374]
[1751795463046,0.03,147.31,147.29,12.81097387]
[1751795463234,0.03,147.31,147.28,12.81155156]
[1751795463641,0.03,147.31,147.28,6.78975782]
[1751795463843,0.03,147.31,147.28,12.81155156]
[1751795464339,0.03,147.31,147.29,12.81095183]
[1751795466344,0.03,147.31,147.28,12.81158189]
[1751795467052,6.02179374,147.3,147.26,6.12179374]
[1751795467254,13.57832495,147.3,147.26,0.1]
[1751795467632,7.55653121,147.3,147.26,0.1]
[1751795467832,13.57832495,147.3,147.26,0.1]
[1751795468060,13.57832495,147.3,147.26,6.89063484]
[1751795468446,6.02179374,147.29,147.26,6.89063484]
[1751795469039,13.57832495,147.3,147.26,6.89063484]
[1751795469987,6.05179374,147.31,147.26,6.89063484]
[1751795470142,0.03,147.31,147.27,6.02179374]
[1751795470453,13.60903434,147.31,147.27,6.02179374]
[1751795471066,13.60903434,147.31,147.27,12.81175736]
[1751795472560,7.5872406,147.31,147.27,12.81175736]
[1751795475671,7.5872406,147.31,147.27,12.31175736]
[1751795476052,0.03,147.31,147.27,12.31175736]
[1751795476552,0.03,147.31,147.27,12.37175736]
[1751795477472,7.59150758,147.31,147.27,12.37175736]
[1751795478159,0.03,147.31,147.27,12.37175736]
[1751795478553,7.59504719,147.31,147.27,12.37175736]
[1751795478743,7.59504719,147.31,147.27,12.87175736]
[1751795479246,0.03,147.31,147.27,12.87175736]
[1751795481255,7.56838783,147.3,147.27,12.87175736]
[1751795481457,0.03,147.31,147.27,12.87175736]
[1751795481660,7.56854577,147.3,147.27,12.87175736]
[1751795481850,0.03,147.31,147.27,12.87175736]
[1751795482056,7.56854577,147.3,147.27,12.87175736]
[1751795482256,0.03,147.31,147.27,12.87175736]
[1751795482459,7.56978351,147.3,147.27,12.87175736]
[1751795482747,0.03,147.31,147.27,12.87175736]
[1751795482949,7.56994023,147.3,147.27,12.87175736]
[1751795485572,24.6714426,147.3,147.27,0.06]
[1751795485744,7.57116924,147.29,147.27,0.06]
[1751795485950,18.64964886,147.3,147.27,0.06]
[1751795486364,0.03,147.31,147.27,0.06]
[1751795486566,0.03,147.31,147.29,6.02179374]
[1751795486744,0.03,147.31,147.27,0.06]
[1751795486745,0.03,147.31,147.3,6.02179374]
[1751795488551,0.03,147.31,147.3,12.81065999]
[1751795491967,0.03,147.31,147.3,32.02179374]